[Event "Titled Tuesday Blitz September 27 Early 2022"]
[White "De Silva, L M S T"]
[Black "Karavade, Eesha"]
[WhiteFideId "9953698"]
[BlackFideId "5012600"]
[WhiteElo "1727"]
[BlackElo "2258"]
[Result "1-0"]
[Round "05"]
[TimeControl "180+1"]
[Date "2022.09.27"]
[WhiteClock "0:00:04"]
[BlackClock "0:00:09"]

1. e4 {[%clk 0:02:43]}  c5 {[%clk 0:02:28]} 2. Nf3 {[%clk 0:02:29]}  d6 {[%clk 0:02:27]} 3. Bb5+ {[%clk 0:02:30]}  Nd7 {[%clk 0:02:26]} 4. Ba4 {[%clk 0:02:30]}  Nf6 {[%clk 0:02:24]} 5. O-O {[%clk 0:02:30]}  g6 {[%clk 0:02:23]} 6. Re1 {[%clk 0:02:26]}  Bg7 {[%clk 0:02:23]} 7. c3 {[%clk 0:02:27]}  O-O {[%clk 0:02:15]} 8. d4 {[%clk 0:02:27]}  d5 {[%clk 0:02:12]} 9. e5 {[%clk 0:02:26]}  Ne4 {[%clk 0:02:12]} 10. Nbd2 {[%clk 0:02:23]}  Nxd2 {[%clk 0:02:08]} 11. Bxd2 {[%clk 0:02:24]}  cxd4 {[%clk 0:02:08]} 12. cxd4 {[%clk 0:02:23]}  Nb6 {[%clk 0:02:03]} 13. Bc2 {[%clk 0:02:23]}  Bg4 {[%clk 0:02:02]} 14. h3 {[%clk 0:02:21]}  Bxf3 {[%clk 0:01:58]} 15. Qxf3 {[%clk 0:02:22]}  Rc8 {[%clk 0:01:56]} 16. Bc3 {[%clk 0:02:22]}  e6 {[%clk 0:01:52]} 17. Rac1 {[%clk 0:02:17]}  Qd7 {[%clk 0:01:49]} 18. g4 {[%clk 0:02:09]}  Rc7 {[%clk 0:01:39]} 19. g5 {[%clk 0:02:08]}  Rfc8 {[%clk 0:01:38]} 20. h4 {[%clk 0:02:04]}  Na4 {[%clk 0:01:37]} 21. Bxa4 {[%clk 0:02:04]}  Qxa4 {[%clk 0:01:36]} 22. Kg2 {[%clk 0:02:00]}  b5 {[%clk 0:01:30]} 23. a3 {[%clk 0:01:58]}  a5 {[%clk 0:01:29]} 24. h5 {[%clk 0:01:54]}  b4 {[%clk 0:01:26]} 25. axb4 {[%clk 0:01:55]}  axb4 {[%clk 0:01:26]} 26. Bd2 {[%clk 0:01:42]}  Rxc1 {[%clk 0:01:21]} 27. Bxc1 {[%clk 0:00:53]}  Qc2 {[%clk 0:01:20]} 28. h6 {[%clk 0:00:53]}  Bf8 {[%clk 0:01:15]} 29. Qf4 {[%clk 0:00:53]}  Qf5 {[%clk 0:00:58]} 30. Qxf5 {[%clk 0:00:52]}  gxf5 {[%clk 0:00:58]} 31. Be3 {[%clk 0:00:48]}  Rc2 {[%clk 0:00:52]} 32. Ra1 {[%clk 0:00:45]}  Rxb2 {[%clk 0:00:51]} 33. Ra8 {[%clk 0:00:46]}  b3 {[%clk 0:00:45]} 34. Rb8 {[%clk 0:00:45]}  f6 {[%clk 0:00:33]} 35. exf6 {[%clk 0:00:33]}  Kf7 {[%clk 0:00:32]} 36. g6+ {[%clk 0:00:31]}  Kxg6 {[%clk 0:00:29]} 37. Rxf8 {[%clk 0:00:31]}  Rc2 {[%clk 0:00:24]} 38. Rb8 {[%clk 0:00:24]}  b2 {[%clk 0:00:22]} 39. Bf4 {[%clk 0:00:18]}  Kxf6 {[%clk 0:00:21]} 40. Rb7 {[%clk 0:00:16]}  Kg6 {[%clk 0:00:16]} 41. Rg7+ {[%clk 0:00:15]}  Kh5 {[%clk 0:00:16]} 42. Rb7 {[%clk 0:00:08]}  Kg4 {[%clk 0:00:16]} 43. Be5 {[%clk 0:00:06]}  f4 {[%clk 0:00:16]} 44. Rg7+ {[%clk 0:00:06]}  Kf5 {[%clk 0:00:16]} 45. Rb7 {[%clk 0:00:07]}  Ke4 {[%clk 0:00:16]} 46. Rb3 {[%clk 0:00:04]}  f3+ {[%clk 0:00:16]} 47. Kg3 {[%clk 0:00:05]}  Rc1 {[%clk 0:00:14]} 48. Rxb2 {[%clk 0:00:05]}  Rg1+ {[%clk 0:00:14]} 49. Kh4 {[%clk 0:00:05]}  Rg2 {[%clk 0:00:11]} 50. Kh3 {[%clk 0:00:03]}  Rg1 {[%clk 0:00:10]} 51. Rb7 {[%clk 0:00:03]}  Kd3 {[%clk 0:00:09]} 52. Rxh7 {[%clk 0:00:03]}  Ke2 {[%clk 0:00:09]} 53. Bg3 {[%clk 0:00:04]}  Rh1+ {[%clk 0:00:09]} 54. Kg4 {[%clk 0:00:04]} 1-0


[Site "https://www.chess.com"]

[Event "Titled Tuesday Blitz September 27 Early 2022"]
[White "Devaev, Alexander"]
[Black "Thiel, Thomas"]
[WhiteFideId "4169395"]
[BlackFideId "4615964"]
[WhiteElo "2185"]
[BlackElo "2207"]
[Result "1-0"]
[Round "05"]
[TimeControl "180+1"]
[Date "2022.09.27"]
[WhiteClock "0:00:14"]
[BlackClock "0:00:30"]

1. d4 {[%clk 0:02:40]}  Nf6 {[%clk 0:02:57]} 2. c4 {[%clk 0:02:37]}  g6 {[%clk 0:02:56]} 3. Nc3 {[%clk 0:02:38]}  d5 {[%clk 0:02:56]} 4. Nf3 {[%clk 0:02:37]}  Bg7 {[%clk 0:02:54]} 5. Bg5 {[%clk 0:02:38]}  Ne4 {[%clk 0:02:53]} 6. cxd5 {[%clk 0:02:39]}  Nxg5 {[%clk 0:02:51]} 7. Nxg5 {[%clk 0:02:40]}  e6 {[%clk 0:02:51]} 8. Nf3 {[%clk 0:02:40]}  exd5 {[%clk 0:02:49]} 9. b4 {[%clk 0:02:41]}  O-O {[%clk 0:02:47]} 10. Qb3 {[%clk 0:02:41]}  c6 {[%clk 0:02:44]} 11. e3 {[%clk 0:02:41]}  Re8 {[%clk 0:02:39]} 12. Be2 {[%clk 0:02:41]}  Qb6 {[%clk 0:02:29]} 13. O-O {[%clk 0:02:40]}  Be6 {[%clk 0:02:26]} 14. Na4 {[%clk 0:02:32]}  Qd8 {[%clk 0:02:21]} 15. Nc5 {[%clk 0:02:32]}  Bc8 {[%clk 0:02:20]} 16. Rac1 {[%clk 0:02:28]}  Nd7 {[%clk 0:02:20]} 17. Nxd7 {[%clk 0:02:22]}  Bxd7 {[%clk 0:02:19]} 18. b5 {[%clk 0:02:23]}  Qb6 {[%clk 0:02:03]} 19. Rb1 {[%clk 0:01:39]}  Rec8 {[%clk 0:01:47]} 20. a4 {[%clk 0:01:30]}  cxb5 {[%clk 0:01:45]} 21. axb5 {[%clk 0:01:26]}  Be6 {[%clk 0:01:42]} 22. Ng5 {[%clk 0:01:24]}  Bf8 {[%clk 0:01:37]} 23. Nxe6 {[%clk 0:01:11]}  Qxe6 {[%clk 0:01:36]} 24. Bf3 {[%clk 0:01:10]}  Rd8 {[%clk 0:01:34]} 25. Rfc1 {[%clk 0:01:10]}  a6 {[%clk 0:01:16]} 26. bxa6 {[%clk 0:01:05]}  bxa6 {[%clk 0:01:14]} 27. Qa2 {[%clk 0:01:03]}  a5 {[%clk 0:01:14]} 28. Qa4 {[%clk 0:01:02]}  Bb4 {[%clk 0:01:10]} 29. g3 {[%clk 0:01:00]}  Rac8 {[%clk 0:01:07]} 30. Kg2 {[%clk 0:00:58]}  Kg7 {[%clk 0:01:03]} 31. h3 {[%clk 0:00:57]}  h5 {[%clk 0:01:02]} 32. Qb5 {[%clk 0:00:49]}  Rxc1 {[%clk 0:00:50]} 33. Rxc1 {[%clk 0:00:49]}  Rd6 {[%clk 0:00:50]} 34. Rc7 {[%clk 0:00:44]}  Rb6 {[%clk 0:00:49]} 35. Qxd5 {[%clk 0:00:38]}  Qxd5 {[%clk 0:00:47]} 36. Bxd5 {[%clk 0:00:38]}  Be1 {[%clk 0:00:46]} 37. Rxf7+ {[%clk 0:00:37]}  Kh6 {[%clk 0:00:45]} 38. g4 {[%clk 0:00:21]}  hxg4 {[%clk 0:00:43]} 39. hxg4 {[%clk 0:00:22]}  a4 {[%clk 0:00:43]} 40. f4 {[%clk 0:00:16]}  g5 {[%clk 0:00:41]} 41. Be4 {[%clk 0:00:14]}  gxf4 {[%clk 0:00:39]} 42. exf4 {[%clk 0:00:14]}  Rb2+ {[%clk 0:00:37]} 43. Kf3 {[%clk 0:00:14]}  Rb3+ {[%clk 0:00:36]} 44. Ke2 {[%clk 0:00:15]}  Bg3 {[%clk 0:00:30]} 45. Rh7# {[%clk 0:00:14]} 1-0


[Site "https://www.chess.com"]

[Event "Titled Tuesday Blitz September 27 Early 2022"]
[White "Dowgird, Filip"]
[Black "Sovetbekova, Nurai"]
[WhiteFideId "1121235"]
[BlackFideId "13801910"]
[WhiteElo "2215"]
[BlackElo "1646"]
[Result "1-0"]
[Round "05"]
[TimeControl "180+1"]
[Date "2022.09.27"]
[WhiteClock "0:00:28"]
[BlackClock "0:00:03"]

1. d4 {[%clk 0:02:58]}  Nf6 {[%clk 0:02:01]} 2. Bf4 {[%clk 0:02:58]}  g6 {[%clk 0:02:01]} 3. Nc3 {[%clk 0:02:56]}  d5 {[%clk 0:02:01]} 4. Nf3 {[%clk 0:02:52]}  Bg7 {[%clk 0:02:00]} 5. e3 {[%clk 0:02:51]}  O-O {[%clk 0:02:00]} 6. h4 {[%clk 0:02:52]}  c5 {[%clk 0:01:57]} 7. dxc5 {[%clk 0:02:52]}  Qa5 {[%clk 0:01:55]} 8. Be5 {[%clk 0:02:44]}  Nbd7 {[%clk 0:01:49]} 9. Bd4 {[%clk 0:02:36]}  Nxc5 {[%clk 0:01:46]} 10. a3 {[%clk 0:02:29]}  Nce4 {[%clk 0:01:39]} 11. b4 {[%clk 0:02:26]}  Nxc3 {[%clk 0:01:37]} 12. Bxc3 {[%clk 0:02:23]}  Qc7 {[%clk 0:01:36]} 13. Be5 {[%clk 0:02:24]}  Qc6 {[%clk 0:01:33]} 14. Qd4 {[%clk 0:02:10]}  Bg4 {[%clk 0:01:23]} 15. Bd3 {[%clk 0:02:04]}  Bxf3 {[%clk 0:01:10]} 16. gxf3 {[%clk 0:02:04]}  Nh5 {[%clk 0:01:10]} 17. Bxg7 {[%clk 0:02:01]}  Nxg7 {[%clk 0:01:11]} 18. f4 {[%clk 0:01:56]}  f6 {[%clk 0:01:06]} 19. Kd2 {[%clk 0:01:51]}  e5 {[%clk 0:01:04]} 20. Qb2 {[%clk 0:01:34]}  exf4 {[%clk 0:00:56]} 21. exf4 {[%clk 0:01:34]}  Qb6 {[%clk 0:00:42]} 22. Raf1 {[%clk 0:01:19]}  d4 {[%clk 0:00:37]} 23. Qb3+ {[%clk 0:01:16]}  Kh8 {[%clk 0:00:36]} 24. h5 {[%clk 0:01:10]}  gxh5 {[%clk 0:00:31]} 25. Rfg1 {[%clk 0:01:02]}  Qd6 {[%clk 0:00:28]} 26. Rh4 {[%clk 0:01:01]}  Rae8 {[%clk 0:00:19]} 27. Qa4 {[%clk 0:00:46]}  a6 {[%clk 0:00:16]} 28. Qa5 {[%clk 0:00:46]}  Re6 {[%clk 0:00:15]} 29. Rxg7 {[%clk 0:00:44]}  Kxg7 {[%clk 0:00:13]} 30. Qxh5 {[%clk 0:00:44]}  Rh8 {[%clk 0:00:11]} 31. Rg4+ {[%clk 0:00:36]}  Kf8 {[%clk 0:00:10]} 32. Qh6+ {[%clk 0:00:36]}  Ke8 {[%clk 0:00:09]} 33. Qg7 {[%clk 0:00:32]}  Rf8 {[%clk 0:00:09]} 34. Qxb7 {[%clk 0:00:32]}  Re7 {[%clk 0:00:08]} 35. Qc8+ {[%clk 0:00:28]}  Kf7 {[%clk 0:00:07]} 36. Bc4+ {[%clk 0:00:27]}  Re6 {[%clk 0:00:03]} 37. Bxe6+ {[%clk 0:00:27]}  Qxe6 {[%clk 0:00:03]} 38. Rg7+ {[%clk 0:00:28]}  Kxg7 {[%clk 0:00:03]} 39. Qxe6 {[%clk 0:00:28]} 1-0


[Site "https://www.chess.com"]

[Event "Titled Tuesday Blitz September 27 Early 2022"]
[White "Ferreira, Vitor Hugo Vieira"]
[Black "Wachinger, Guenther"]
[WhiteFideId "2119765"]
[BlackFideId "4604261"]
[WhiteElo "2168"]
[BlackElo "2212"]
[Result "1/2-1/2"]
[Round "05"]
[TimeControl "180+1"]
[Date "2022.09.27"]
[WhiteClock "0:00:12"]
[BlackClock "0:00:03"]

1. e3 {[%clk 0:00:15]}  e5 {[%clk 0:02:54]} 2. Nf3 {[%clk 0:00:15]}  Nc6 {[%clk 0:02:53]} 3. d4 {[%clk 0:00:15]}  exd4 {[%clk 0:02:47]} 4. exd4 {[%clk 0:00:15]}  d5 {[%clk 0:02:46]} 5. Bd3 {[%clk 0:00:15]}  Bd6 {[%clk 0:02:42]} 6. O-O {[%clk 0:00:15]}  Nge7 {[%clk 0:02:43]} 7. Re1 {[%clk 0:00:16]}  h6 {[%clk 0:02:41]} 8. c3 {[%clk 0:00:16]}  Bg4 {[%clk 0:02:39]} 9. Nbd2 {[%clk 0:00:17]}  Qd7 {[%clk 0:02:39]} 10. Nf1 {[%clk 0:00:16]}  O-O-O {[%clk 0:02:38]} 11. Ne3 {[%clk 0:00:15]}  Bh5 {[%clk 0:02:37]} 12. Be2 {[%clk 0:00:13]}  f5 {[%clk 0:02:28]} 13. b4 {[%clk 0:00:12]}  f4 {[%clk 0:02:21]} 14. Nf1 {[%clk 0:00:12]}  Nf5 {[%clk 0:02:15]} 15. b5 {[%clk 0:00:12]}  Nce7 {[%clk 0:02:15]} 16. a4 {[%clk 0:00:12]}  g5 {[%clk 0:02:15]} 17. a5 {[%clk 0:00:12]}  Kb8 {[%clk 0:02:10]} 18. b6 {[%clk 0:00:12]}  cxb6 {[%clk 0:02:06]} 19. axb6 {[%clk 0:00:12]}  a6 {[%clk 0:02:07]} 20. Ne5 {[%clk 0:00:12]}  Bxe5 {[%clk 0:02:05]} 21. Bxh5 {[%clk 0:00:10]}  Bd6 {[%clk 0:02:02]} 22. Bg4 {[%clk 0:00:10]}  h5 {[%clk 0:02:01]} 23. Be2 {[%clk 0:00:10]}  g4 {[%clk 0:02:00]} 24. Bxa6 {[%clk 0:00:10]}  bxa6 {[%clk 0:02:00]} 25. Rxa6 {[%clk 0:00:11]}  Nc8 {[%clk 0:01:58]} 26. Qb3 {[%clk 0:00:09]}  Qb7 {[%clk 0:01:52]} 27. Qa4 {[%clk 0:00:08]}  Nxb6 {[%clk 0:01:43]} 28. Qb5 {[%clk 0:00:08]}  Nc8 {[%clk 0:01:38]} 29. Qa4 {[%clk 0:00:07]}  Nb6 {[%clk 0:01:19]} 30. Qb5 {[%clk 0:00:06]}  Bc7 {[%clk 0:01:19]} 31. Bxf4 {[%clk 0:00:05]}  Nd6 {[%clk 0:01:09]} 32. Qd3 {[%clk 0:00:05]}  Ndc4 {[%clk 0:01:07]} 33. Bxc7+ {[%clk 0:00:04]}  Qxc7 {[%clk 0:01:07]} 34. Rea1 {[%clk 0:00:05]}  h4 {[%clk 0:01:03]} 35. g3 {[%clk 0:00:05]}  hxg3 {[%clk 0:01:02]} 36. Nxg3 {[%clk 0:00:03]}  Qh7 {[%clk 0:00:58]} 37. Qxh7 {[%clk 0:00:03]}  Rxh7 {[%clk 0:00:59]} 38. Rb1 {[%clk 0:00:03]}  Kb7 {[%clk 0:00:59]} 39. Ra2 {[%clk 0:00:03]}  Rdh8 {[%clk 0:00:56]} 40. Nf1 {[%clk 0:00:03]}  Rh3 {[%clk 0:00:53]} 41. Re2 {[%clk 0:00:03]}  Rxc3 {[%clk 0:00:52]} 42. Re7+ {[%clk 0:00:03]}  Kc6 {[%clk 0:00:52]} 43. Rg7 {[%clk 0:00:04]}  Nd6 {[%clk 0:00:44]} 44. Rg6 {[%clk 0:00:04]}  Nc4 {[%clk 0:00:44]} 45. Re1 {[%clk 0:00:03]}  Rd3 {[%clk 0:00:40]} 46. Ng3 {[%clk 0:00:03]}  Rf8 {[%clk 0:00:38]} 47. Ree6 {[%clk 0:00:02]}  Rd1+ {[%clk 0:00:35]} 48. Kg2 {[%clk 0:00:03]}  Rd2 {[%clk 0:00:35]} 49. Re2 {[%clk 0:00:02]}  Rxe2 {[%clk 0:00:29]} 50. Nxe2 {[%clk 0:00:03]}  Kb5 {[%clk 0:00:28]} 51. Rxg4 {[%clk 0:00:03]}  Ne4 {[%clk 0:00:28]} 52. f3 {[%clk 0:00:03]}  Ne3+ {[%clk 0:00:28]} 53. Kh3 {[%clk 0:00:02]}  Nxg4 {[%clk 0:00:29]} 54. Kxg4 {[%clk 0:00:03]}  Nd2 {[%clk 0:00:21]} 55. f4 {[%clk 0:00:02]}  Kc4 {[%clk 0:00:22]} 56. f5 {[%clk 0:00:02]}  Ne4 {[%clk 0:00:22]} 57. h4 {[%clk 0:00:03]}  Kd3 {[%clk 0:00:22]} 58. Nf4+ {[%clk 0:00:03]}  Ke3 {[%clk 0:00:22]} 59. Nxd5+ {[%clk 0:00:04]}  Kxd4 {[%clk 0:00:22]} 60. Nf4 {[%clk 0:00:04]}  Rg8+ {[%clk 0:00:21]} 61. Kf3 {[%clk 0:00:05]}  Ke5 {[%clk 0:00:20]} 62. Ng6+ {[%clk 0:00:04]}  Kd4 {[%clk 0:00:17]} 63. Kg4 {[%clk 0:00:05]}  Nf2+ {[%clk 0:00:07]} 64. Kg5 {[%clk 0:00:05]}  Ne4+ {[%clk 0:00:07]} 65. Kg4 {[%clk 0:00:05]}  Ra8 {[%clk 0:00:05]} 66. h5 {[%clk 0:00:06]}  Nf6+ {[%clk 0:00:04]} 67. Kg5 {[%clk 0:00:07]}  Nd5 {[%clk 0:00:03]} 68. h6 {[%clk 0:00:07]}  Ra1 {[%clk 0:00:03]} 69. h7 {[%clk 0:00:07]}  Rg1+ {[%clk 0:00:03]} 70. Kh6 {[%clk 0:00:07]}  Rh1+ {[%clk 0:00:03]} 71. Kg7 {[%clk 0:00:08]}  Ne3 {[%clk 0:00:02]} 72. f6 {[%clk 0:00:08]}  Nf5+ {[%clk 0:00:03]} 73. Kg8 {[%clk 0:00:09]}  Nh6+ {[%clk 0:00:02]} 74. Kf8 {[%clk 0:00:09]}  Nf5 {[%clk 0:00:02]} 75. h8=Q {[%clk 0:00:09]}  Rxh8+ {[%clk 0:00:01]} 76. Nxh8 {[%clk 0:00:10]}  Ke5 {[%clk 0:00:02]} 77. f7 {[%clk 0:00:10]}  Nd6 {[%clk 0:00:02]} 78. Ng6+ {[%clk 0:00:11]}  Kf6 {[%clk 0:00:02]} 79. Kg8 {[%clk 0:00:12]}  Nxf7 {[%clk 0:00:03]} 1/2-1/2


[Site "https://www.chess.com"]

[Event "Titled Tuesday Blitz September 27 Early 2022"]
[White "Fiorito, Joaquin"]
[Black "Cruz, Jonathan"]
[WhiteFideId "180173"]
[BlackFideId "3802124"]
[WhiteElo "1758"]
[BlackElo "2406"]
[Result "0-1"]
[Round "05"]
[TimeControl "180+1"]
[Date "2022.09.27"]
[WhiteClock "0:00:09"]
[BlackClock "0:00:37"]

1. e4 {[%clk 0:03:00]}  e5 {[%clk 0:02:59]} 2. Nf3 {[%clk 0:03:00]}  Nc6 {[%clk 0:03:00]} 3. Bb5 {[%clk 0:03:01]}  a6 {[%clk 0:02:59]} 4. Ba4 {[%clk 0:03:00]}  Nf6 {[%clk 0:02:59]} 5. O-O {[%clk 0:02:59]}  Be7 {[%clk 0:03:00]} 6. d3 {[%clk 0:02:58]}  b5 {[%clk 0:03:00]} 7. Bb3 {[%clk 0:02:58]}  d6 {[%clk 0:03:00]} 8. a3 {[%clk 0:02:58]}  O-O {[%clk 0:03:00]} 9. Nc3 {[%clk 0:02:59]}  Be6 {[%clk 0:03:00]} 10. Nd5 {[%clk 0:02:52]}  Qd7 {[%clk 0:02:56]} 11. h3 {[%clk 0:02:41]}  Bd8 {[%clk 0:02:52]} 12. Be3 {[%clk 0:02:38]}  Na5 {[%clk 0:02:45]} 13. Ba2 {[%clk 0:02:37]}  c6 {[%clk 0:02:45]} 14. Nxf6+ {[%clk 0:02:32]}  Bxf6 {[%clk 0:02:44]} 15. Bb1 {[%clk 0:01:40]}  c5 {[%clk 0:02:24]} 16. Qd2 {[%clk 0:01:29]}  Qc7 {[%clk 0:02:14]} 17. b4 {[%clk 0:01:28]}  cxb4 {[%clk 0:02:04]} 18. axb4 {[%clk 0:01:27]}  Nc6 {[%clk 0:02:05]} 19. c3 {[%clk 0:01:23]}  d5 {[%clk 0:02:05]} 20. Bc5 {[%clk 0:01:21]}  Rfd8 {[%clk 0:02:03]} 21. Ng5 {[%clk 0:01:20]}  Bxg5 {[%clk 0:01:51]} 22. Qxg5 {[%clk 0:01:20]}  f6 {[%clk 0:01:52]} 23. Qg3 {[%clk 0:01:12]}  d4 {[%clk 0:01:47]} 24. cxd4 {[%clk 0:01:09]}  Nxd4 {[%clk 0:01:46]} 25. Kh2 {[%clk 0:01:07]}  Nb3 {[%clk 0:01:43]} 26. Ba2 {[%clk 0:01:07]}  Nxc5 {[%clk 0:01:40]} 27. bxc5 {[%clk 0:01:07]}  Bxa2 {[%clk 0:01:40]} 28. Rxa2 {[%clk 0:01:07]}  Qxc5 {[%clk 0:01:39]} 29. Rfa1 {[%clk 0:01:07]}  Rd6 {[%clk 0:01:19]} 30. Qg4 {[%clk 0:00:58]}  b4 {[%clk 0:01:08]} 31. Qe2 {[%clk 0:00:50]}  b3 {[%clk 0:00:58]} 32. Ra5 {[%clk 0:00:49]}  Qc3 {[%clk 0:00:55]} 33. d4 {[%clk 0:00:27]}  b2 {[%clk 0:00:43]} 34. dxe5 {[%clk 0:00:09]}  bxa1=Q {[%clk 0:00:37]} 35. Rxa1 {[%clk 0:00:09]}  Qxe5+ {[%clk 0:00:37]} 0-1


[Site "https://www.chess.com"]

[Event "Titled Tuesday Blitz September 27 Early 2022"]
[White "Forgacs, Attila Jr."]
[Black "Ilkhomi, Jaloliddin"]
[WhiteFideId "773654"]
[BlackFideId "14700948"]
[WhiteElo "2062"]
[BlackElo "1440"]
[Result "1/2-1/2"]
[Round "05"]
[TimeControl "180+1"]
[Date "2022.09.27"]
[WhiteClock "0:00:06"]
[BlackClock "0:00:28"]

1. e4 {[%clk 0:03:00]}  e6 {[%clk 0:03:00]} 2. d4 {[%clk 0:02:55]}  d5 {[%clk 0:02:59]} 3. Nc3 {[%clk 0:02:54]}  Bb4 {[%clk 0:02:59]} 4. e5 {[%clk 0:02:52]}  c5 {[%clk 0:02:57]} 5. a3 {[%clk 0:02:52]}  Bxc3+ {[%clk 0:02:58]} 6. bxc3 {[%clk 0:02:53]}  Qa5 {[%clk 0:02:58]} 7. Bd2 {[%clk 0:02:52]}  Qa4 {[%clk 0:02:59]} 8. Qg4 {[%clk 0:02:51]}  Kf8 {[%clk 0:02:25]} 9. Nf3 {[%clk 0:02:49]}  Ne7 {[%clk 0:02:22]} 10. Be2 {[%clk 0:02:47]}  Nbc6 {[%clk 0:02:20]} 11. O-O {[%clk 0:02:45]}  Nf5 {[%clk 0:02:20]} 12. Be3 {[%clk 0:02:02]}  Qxc2 {[%clk 0:02:01]} 13. Bb5 {[%clk 0:01:46]}  Qe4 {[%clk 0:01:47]} 14. Qxe4 {[%clk 0:01:28]}  dxe4 {[%clk 0:01:47]} 15. Ng5 {[%clk 0:01:28]}  cxd4 {[%clk 0:01:42]} 16. cxd4 {[%clk 0:01:14]}  Ke7 {[%clk 0:01:02]} 17. Nxe4 {[%clk 0:01:07]}  Rd8 {[%clk 0:01:01]} 18. Bxc6 {[%clk 0:00:58]}  bxc6 {[%clk 0:01:01]} 19. Rfd1 {[%clk 0:00:59]}  Rb8 {[%clk 0:00:44]} 20. g4 {[%clk 0:00:56]}  Nxe3 {[%clk 0:00:40]} 21. fxe3 {[%clk 0:00:57]}  Rb3 {[%clk 0:00:37]} 22. Kf2 {[%clk 0:00:56]}  f6 {[%clk 0:00:32]} 23. exf6+ {[%clk 0:00:51]}  gxf6 {[%clk 0:00:33]} 24. Rdc1 {[%clk 0:00:51]}  f5 {[%clk 0:00:23]} 25. gxf5 {[%clk 0:00:48]}  exf5 {[%clk 0:00:23]} 26. Nc5 {[%clk 0:00:32]}  Rb2+ {[%clk 0:00:23]} 27. Kf3 {[%clk 0:00:31]}  Rxh2 {[%clk 0:00:18]} 28. Rg1 {[%clk 0:00:31]}  Rh3+ {[%clk 0:00:14]} 29. Kf2 {[%clk 0:00:28]}  Rf8 {[%clk 0:00:12]} 30. Rg7+ {[%clk 0:00:27]}  Rf7 {[%clk 0:00:12]} 31. Rag1 {[%clk 0:00:27]}  Rh2+ {[%clk 0:00:12]} 32. Kf3 {[%clk 0:00:26]}  Ra2 {[%clk 0:00:11]} 33. Rg8 {[%clk 0:00:23]}  Be6 {[%clk 0:00:10]} 34. Nxe6 {[%clk 0:00:15]}  Kxe6 {[%clk 0:00:10]} 35. Rc8 {[%clk 0:00:14]}  Kd6 {[%clk 0:00:07]} 36. Rc1 {[%clk 0:00:14]}  Rc7 {[%clk 0:00:06]} 37. Rd8+ {[%clk 0:00:11]}  Ke7 {[%clk 0:00:06]} 38. Rh8 {[%clk 0:00:11]}  Ke6 {[%clk 0:00:06]} 39. Rh1 {[%clk 0:00:10]}  Rxa3 {[%clk 0:00:05]} 40. Rh6+ {[%clk 0:00:09]}  Kd5 {[%clk 0:00:05]} 41. Rd8+ {[%clk 0:00:10]}  Kc4 {[%clk 0:00:05]} 42. Rf6 {[%clk 0:00:09]}  Re7 {[%clk 0:00:06]} 43. Rxc6+ {[%clk 0:00:07]}  Kd3 {[%clk 0:00:06]} 44. Rf6 {[%clk 0:00:06]}  Ra1 {[%clk 0:00:06]} 45. Rxf5 {[%clk 0:00:05]}  Rxe3+ {[%clk 0:00:06]} 46. Kf4 {[%clk 0:00:05]}  Rf1+ {[%clk 0:00:06]} 47. Kg5 {[%clk 0:00:06]}  h6+ {[%clk 0:00:07]} 48. Kf6 {[%clk 0:00:06]}  Rxf5+ {[%clk 0:00:06]} 49. Kxf5 {[%clk 0:00:06]}  Rf3+ {[%clk 0:00:07]} 50. Kg4 {[%clk 0:00:06]}  Rf7 {[%clk 0:00:07]} 51. d5 {[%clk 0:00:07]}  Ke4 {[%clk 0:00:07]} 52. d6 {[%clk 0:00:07]}  Kd5 {[%clk 0:00:08]} 53. d7 {[%clk 0:00:07]}  Kd6 {[%clk 0:00:08]} 54. Rh8 {[%clk 0:00:07]}  Rxd7 {[%clk 0:00:09]} 55. Rxh6+ {[%clk 0:00:07]}  Kc5 {[%clk 0:00:10]} 56. Kf3 {[%clk 0:00:07]}  Re7 {[%clk 0:00:09]} 57. Rh5+ {[%clk 0:00:06]}  Kb4 {[%clk 0:00:10]} 58. Rh4+ {[%clk 0:00:07]}  Kb3 {[%clk 0:00:10]} 59. Rh5 {[%clk 0:00:05]}  Kb4 {[%clk 0:00:10]} 60. Rh4+ {[%clk 0:00:05]}  Kb5 {[%clk 0:00:11]} 61. Rh5+ {[%clk 0:00:06]}  Kb6 {[%clk 0:00:11]} 62. Rh6+ {[%clk 0:00:05]}  Kb7 {[%clk 0:00:12]} 63. Rh4 {[%clk 0:00:05]}  a5 {[%clk 0:00:12]} 64. Re4 {[%clk 0:00:06]}  Rd7 {[%clk 0:00:11]} 65. Ke3 {[%clk 0:00:06]}  Kc6 {[%clk 0:00:11]} 66. Rd4 {[%clk 0:00:06]}  Rh7 {[%clk 0:00:12]} 67. Kd3 {[%clk 0:00:05]}  Kb5 {[%clk 0:00:13]} 68. Rd5+ {[%clk 0:00:05]}  Kb4 {[%clk 0:00:13]} 69. Rd4+ {[%clk 0:00:05]}  Kb3 {[%clk 0:00:13]} 70. Rd8 {[%clk 0:00:04]}  Rc7 {[%clk 0:00:12]} 71. Rb8+ {[%clk 0:00:04]}  Ka3 {[%clk 0:00:12]} 72. Kd2 {[%clk 0:00:04]}  a4 {[%clk 0:00:13]} 73. Rb5 {[%clk 0:00:04]}  Ka2 {[%clk 0:00:14]} 74. Rb4 {[%clk 0:00:04]}  a3 {[%clk 0:00:13]} 75. Rb6 {[%clk 0:00:03]}  Rc5 {[%clk 0:00:13]} 76. Rb8 {[%clk 0:00:04]}  Rc4 {[%clk 0:00:14]} 77. Rb7 {[%clk 0:00:04]}  Ka1 {[%clk 0:00:14]} 78. Rb8 {[%clk 0:00:05]}  Rh4 {[%clk 0:00:14]} 79. Kc2 {[%clk 0:00:04]}  Rh2+ {[%clk 0:00:15]} 80. Kc1 {[%clk 0:00:04]}  Ka2 {[%clk 0:00:13]} 81. Rb7 {[%clk 0:00:04]}  Rb2 {[%clk 0:00:14]} 82. Ra7 {[%clk 0:00:03]}  Rb1+ {[%clk 0:00:15]} 83. Kc2 {[%clk 0:00:03]}  Rb5 {[%clk 0:00:15]} 84. Rc7 {[%clk 0:00:02]}  Rh5 {[%clk 0:00:16]} 85. Rb7 {[%clk 0:00:01]}  Rh2+ {[%clk 0:00:17]} 86. Kc1 {[%clk 0:00:01]}  Rb2 {[%clk 0:00:17]} 87. Rc7 {[%clk 0:00:01]}  Rb1+ {[%clk 0:00:18]} 88. Kc2 {[%clk 0:00:01]}  Ka1 {[%clk 0:00:19]} 89. Rc6 {[%clk 0:00:01]}  Rh1 {[%clk 0:00:19]} 90. Rb6 {[%clk 0:00:01]}  Rh2+ {[%clk 0:00:20]} 91. Kc1 {[%clk 0:00:02]}  Rb2 {[%clk 0:00:21]} 92. Rc6 {[%clk 0:00:02]}  Ka2 {[%clk 0:00:20]} 93. Rc5 {[%clk 0:00:02]}  Rb8 {[%clk 0:00:20]} 94. Rc4 {[%clk 0:00:02]}  Rh8 {[%clk 0:00:21]} 95. Rc7 {[%clk 0:00:02]}  Rh1+ {[%clk 0:00:21]} 96. Kc2 {[%clk 0:00:03]}  Rh2+ {[%clk 0:00:21]} 97. Kc1 {[%clk 0:00:04]}  Kb3 {[%clk 0:00:22]} 98. Rb7+ {[%clk 0:00:04]}  Kc3 {[%clk 0:00:22]} 99. Rc7+ {[%clk 0:00:04]}  Kb3 {[%clk 0:00:23]} 100. Rb7+ {[%clk 0:00:05]}  Ka2 {[%clk 0:00:23]} 101. Rc7 {[%clk 0:00:04]}  Rb2 {[%clk 0:00:24]} 102. Rc6 {[%clk 0:00:04]}  Rb1+ {[%clk 0:00:25]} 103. Kc2 {[%clk 0:00:05]}  Rb5 {[%clk 0:00:25]} 104. Rc7 {[%clk 0:00:05]}  Ka1 {[%clk 0:00:25]} 105. Kc1 {[%clk 0:00:05]}  a2 {[%clk 0:00:26]} 106. Kc2 {[%clk 0:00:05]}  Rh5 {[%clk 0:00:26]} 107. Rb7 {[%clk 0:00:05]}  Rh2+ {[%clk 0:00:27]} 108. Kc1 {[%clk 0:00:05]}  Rh1+ {[%clk 0:00:27]} 109. Kc2 {[%clk 0:00:06]}  Rb1 {[%clk 0:00:28]} 110. Rc7 {[%clk 0:00:06]}  Rb6 {[%clk 0:00:28]} 111. Rc8 {[%clk 0:00:06]}  Rb4 {[%clk 0:00:28]} 112. Rc7 {[%clk 0:00:06]}  Rb2+ {[%clk 0:00:28]} 113. Kc1 {[%clk 0:00:06]}  Rh2 {[%clk 0:00:28]} 114. Rb7 {[%clk 0:00:06]}  Rh1+ {[%clk 0:00:28]} 115. Kc2 {[%clk 0:00:07]}  Rh8 {[%clk 0:00:28]} 116. Rb6 {[%clk 0:00:07]}  Rh2+ {[%clk 0:00:27]} 117. Kc1 {[%clk 0:00:07]}  Rh6 {[%clk 0:00:28]} 118. Rxh6 {[%clk 0:00:06]} 1/2-1/2


[Site "https://www.chess.com"]